[Event "*** MasterClass Titled Tuesday Blitz"]
[Site "Chess.com"]
[Date "2017.08.01"]
[Round "5"]
[White "Cocovitsch007"]
[Black "Astaneh"]
[Result "0-1"]
[WhiteElo "2221"]
[BlackElo "2406"]
[TimeControl "180+2"]
[EndTime "14:03:47 PDT"]
[Termination "Astaneh won on time"]

1. d4 {[%clk 0:03:01.9]} 1... Nf6 {[%clk 0:03:00.6]} 2. c4 {[%clk 0:03:02.4]}
2... g6 {[%clk 0:03:02.1]} 3. Nc3 {[%clk 0:03:02]} 3... Bg7 {[%clk 0:03:03.6]}
4. e4 {[%clk 0:03:02.5]} 4... d6 {[%clk 0:03:05.2]} 5. f3 {[%clk 0:03:03.3]}
5... O-O {[%clk 0:03:06.4]} 6. Bg5 {[%clk 0:03:04]} 6... c5 {[%clk 0:03:01.1]}
7. d5 {[%clk 0:03:04.6]} 7... h6 {[%clk 0:02:59]} 8. Be3 {[%clk 0:03:05.3]} 8...
e6 {[%clk 0:03:00.6]} 9. Qd2 {[%clk 0:03:05.6]} 9... exd5 {[%clk 0:03:01.3]} 10.
cxd5 {[%clk 0:03:06.5]} 10... Re8 {[%clk 0:03:01.6]} 11. Nge2 {[%clk 0:03:06.3]}
11... a6 {[%clk 0:03:00.3]} 12. a4 {[%clk 0:03:06.7]} 12... h5 {[%clk
0:02:55.4]} 13. Bg5 {[%clk 0:03:05]} 13... Nbd7 {[%clk 0:02:49.5]} 14. Ng3
{[%clk 0:03:01.9]} 14... Qa5 {[%clk 0:02:47.3]} 15. Be2 {[%clk 0:02:52.4]} 15...
Nh7 {[%clk 0:02:31.3]} 16. Be3 {[%clk 0:02:44.2]} 16... h4 {[%clk 0:02:30.3]}
17. Nf1 {[%clk 0:02:44.9]} 17... b5 {[%clk 0:02:13.8]} 18. Qc2 {[%clk
0:02:34.8]} 18... f5 {[%clk 0:01:43.4]} 19. Nd2 {[%clk 0:02:28.2]} 19... h3
{[%clk 0:01:40.8]} 20. O-O {[%clk 0:02:20.3]} 20... hxg2 {[%clk 0:01:41.1]} 21.
Kxg2 {[%clk 0:02:17.4]} 21... b4 {[%clk 0:01:31]} 22. Nd1 {[%clk 0:02:16.7]}
22... Ne5 {[%clk 0:01:29.3]} 23. f4 {[%clk 0:02:11.1]} 23... Ng4 {[%clk
0:01:29.4]} 24. Bxg4 {[%clk 0:02:11.5]} 24... fxg4 {[%clk 0:01:31.3]} 25. e5
{[%clk 0:02:04.8]} 25... Bf5 {[%clk 0:01:21.7]} 26. Qb3 {[%clk 0:01:57.7]} 26...
Qd8 {[%clk 0:01:16.7]} 27. e6 {[%clk 0:01:46.8]} 27... Qh4 {[%clk 0:01:14.9]}
28. Nf2 {[%clk 0:01:41.5]} 28... Nf6 {[%clk 0:00:56.3]} 29. Rae1 {[%clk
0:01:33.4]} 29... Nh5 {[%clk 0:00:44.1]} 30. Nfe4 {[%clk 0:01:24.1]} 30... Qh3+
{[%clk 0:00:38.3]} 31. Kg1 {[%clk 0:01:19]} 31... g3 {[%clk 0:00:34.7]} 32. hxg3
{[%clk 0:00:58.3]} 32... Nxg3 {[%clk 0:00:35.7]} 33. Nxg3 {[%clk 0:00:37]} 33...
Qxg3+ {[%clk 0:00:37.6]} 34. Kh1 {[%clk 0:00:38.1]} 34... Bc3 {[%clk 0:00:28.5]}
35. bxc3 {[%clk 0:00:35.1]} 35... Kg7 {[%clk 0:00:26.4]} 36. Rf2 {[%clk
0:00:07.5]} 36... Rh8+ {[%clk 0:00:28.3]} 0-1

[Event "*** MasterClass Titled Tuesday Blitz"]
[Site "Chess.com"]
[Date "2017.08.01"]
[Round "5"]
[White "Me_ch_an"]
[Black "Usurpov"]
[Result "0-1"]
[WhiteElo "2385"]
[BlackElo "2290"]
[TimeControl "180+2"]
[EndTime "14:03:50 PDT"]
[Termination "Usurpov won by checkmate"]

1. e4 {[%clk 0:03:01.9]} 1... c5 {[%clk 0:03:00.2]} 2. Nf3 {[%clk 0:03:01.6]}
2... e6 {[%clk 0:03:00.8]} 3. c4 {[%clk 0:03:01.8]} 3... Nc6 {[%clk 0:02:58.6]}
4. d4 {[%clk 0:03:01.3]} 4... cxd4 {[%clk 0:02:58.7]} 5. Nxd4 {[%clk 0:03:03.2]}
5... Nf6 {[%clk 0:02:56.9]} 6. Nc3 {[%clk 0:02:57.9]} 6... d6 {[%clk 0:02:57]}
7. Be3 {[%clk 0:02:56.9]} 7... Be7 {[%clk 0:02:54.1]} 8. Be2 {[%clk 0:02:57.7]}
8... O-O {[%clk 0:02:49.7]} 9. O-O {[%clk 0:02:58.6]} 9... a6 {[%clk 0:02:48.7]}
10. f4 {[%clk 0:02:47.9]} 10... Nxd4 {[%clk 0:02:43]} 11. Bxd4 {[%clk
0:02:48.8]} 11... Qc7 {[%clk 0:02:41]} 12. Rc1 {[%clk 0:02:46.5]} 12... b6
{[%clk 0:02:41.1]} 13. b3 {[%clk 0:02:46.7]} 13... Bb7 {[%clk 0:02:41.8]} 14.
Bf3 {[%clk 0:02:45.2]} 14... e5 {[%clk 0:02:31.8]} 15. Be3 {[%clk 0:02:42.1]}
15... Rac8 {[%clk 0:02:21.4]} 16. Qd2 {[%clk 0:02:37.9]} 16... exf4 {[%clk
0:02:17.1]} 17. Bxf4 {[%clk 0:02:38.6]} 17... Nd7 {[%clk 0:02:18]} 18. Rfd1
{[%clk 0:02:30.7]} 18... Ne5 {[%clk 0:02:17.7]} 19. Be2 {[%clk 0:02:13]} 19...
Qb8 {[%clk 0:02:14.8]} 20. Qd4 {[%clk 0:01:57]} 20... Ba8 {[%clk 0:02:03.1]} 21.
Na4 {[%clk 0:01:44.8]} 21... b5 {[%clk 0:01:48]} 22. Nb6 {[%clk 0:01:44.9]}
22... Rc7 {[%clk 0:01:28.4]} 23. cxb5 {[%clk 0:01:42.5]} 23... Rxc1 {[%clk
0:01:17.6]} 24. Rxc1 {[%clk 0:01:43.1]} 24... axb5 {[%clk 0:01:19.2]} 25. Bxb5
{[%clk 0:01:37.7]} 25... Bf6 {[%clk 0:01:18.2]} 26. Bxe5 {[%clk 0:01:01.6]}
26... dxe5 {[%clk 0:01:04.2]} 27. Qc5 {[%clk 0:00:53.1]} 27... Be7 {[%clk
0:00:52.1]} 28. Qc7 {[%clk 0:00:48.7]} 28... Bxe4 {[%clk 0:00:35.3]} 29. Nd7
{[%clk 0:00:07.5]} 29... Qxb5 {[%clk 0:00:24.7]} 30. Nxf8 {[%clk 0:00:07.7]}
30... Bxf8 {[%clk 0:00:26.6]} 31. Qc4 {[%clk 0:00:08.4]} 31... Qb6+ {[%clk
0:00:20.7]} 32. Kh1 {[%clk 0:00:08.2]} 32... Qg6 {[%clk 0:00:21.4]} 33. Rg1
{[%clk 0:00:06.3]} 33... h5 {[%clk 0:00:22.7]} 34. h3 {[%clk 0:00:06.1]} 34...
h4 {[%clk 0:00:21.5]} 35. Qe2 {[%clk 0:00:06]} 35... f5 {[%clk 0:00:20.8]} 36.
Re1 {[%clk 0:00:07.2]} 36... Qg3 {[%clk 0:00:21.2]} 37. Qe3 {[%clk 0:00:07.3]}
37... Qxg2# {[%clk 0:00:21.9]} 0-1

[Event "*** MasterClass Titled Tuesday Blitz"]
[Site "Chess.com"]
[Date "2017.08.01"]
[Round "5"]
[White "Jadro9"]
[Black "nihalsarin"]
[Result "0-1"]
[WhiteElo "2360"]
[BlackElo "2615"]
[TimeControl "180+2"]
[EndTime "14:03:53 PDT"]
[Termination "nihalsarin won by resignation"]

1. e4 {[%clk 0:03:01.9]} 1... e5 {[%clk 0:03:01.3]} 2. Nf3 {[%clk 0:02:59.5]}
2... Nc6 {[%clk 0:03:02.8]} 3. Bc4 {[%clk 0:02:59.2]} 3... Bc5 {[%clk
0:03:01.8]} 4. O-O {[%clk 0:02:56.1]} 4... Nf6 {[%clk 0:03:01.7]} 5. d3 {[%clk
0:02:57.6]} 5... d6 {[%clk 0:03:02]} 6. c3 {[%clk 0:02:57.3]} 6... a6 {[%clk
0:03:01.5]} 7. d4 {[%clk 0:02:56.4]} 7... Ba7 {[%clk 0:02:59.2]} 8. dxe5 {[%clk
0:02:57.7]} 8... Nxe5 {[%clk 0:02:53.2]} 9. Nxe5 {[%clk 0:02:51.3]} 9... dxe5
{[%clk 0:02:55.1]} 10. Qxd8+ {[%clk 0:02:52.5]} 10... Kxd8 {[%clk 0:02:57]} 11.
Bxf7 {[%clk 0:02:53.7]} 11... Rf8 {[%clk 0:02:40.8]} 12. Bc4 {[%clk 0:02:13.9]}
12... Nxe4 {[%clk 0:02:38.8]} 13. Be3 {[%clk 0:02:14.9]} 13... Bxe3 {[%clk
0:02:39.4]} 14. fxe3 {[%clk 0:02:15.4]} 14... Rxf1+ {[%clk 0:02:40.8]} 15. Bxf1
{[%clk 0:02:15.5]} 15... Ke7 {[%clk 0:02:40.6]} 16. Bd3 {[%clk 0:02:08.4]} 16...
Bf5 {[%clk 0:02:00.6]} 17. Nd2 {[%clk 0:02:07.5]} 17... Nd6 {[%clk 0:01:51.2]}
18. Bxf5 {[%clk 0:02:06.2]} 18... Nxf5 {[%clk 0:01:53.1]} 19. Kf2 {[%clk
0:02:07.3]} 19... Rd8 {[%clk 0:01:53.1]} 20. Ke2 {[%clk 0:02:08.3]} 20... Nd6
{[%clk 0:01:52.4]} 21. Rf1 {[%clk 0:02:07.8]} 21... a5 {[%clk 0:01:52.6]} 22.
Nf3 {[%clk 0:02:06.7]} 22... Nf7 {[%clk 0:01:40.9]} 23. e4 {[%clk 0:01:56.1]}
23... Rd6 {[%clk 0:01:41.3]} 24. Ke3 {[%clk 0:01:56.8]} 24... Rb6 {[%clk
0:01:41.9]} 25. Rf2 {[%clk 0:01:58]} 25... Ke6 {[%clk 0:01:40.6]} 26. Rd2 {[%clk
0:01:53.9]} 26... a4 {[%clk 0:01:38.6]} 27. h3 {[%clk 0:01:29]} 27... h6 {[%clk
0:01:38.3]} 28. g4 {[%clk 0:01:01.7]} 28... Nd6 {[%clk 0:01:34.6]} 29. Rd5
{[%clk 0:00:58.7]} 29... Rxb2 {[%clk 0:01:26.4]} 30. Rxe5+ {[%clk 0:00:59.6]}
30... Kd7 {[%clk 0:01:25.2]} 31. Rd5 {[%clk 0:00:58.9]} 31... Ke7 {[%clk
0:01:05.6]} 32. Nd4 {[%clk 0:00:36]} 32... Rxa2 {[%clk 0:00:58.8]} 33. e5 {[%clk
0:00:37.3]} 33... Nc4+ {[%clk 0:00:59.7]} 34. Ke4 {[%clk 0:00:38.5]} 34... g6
{[%clk 0:00:42.3]} 35. h4 {[%clk 0:00:30.6]} 35... c6 {[%clk 0:00:35.8]} 36. Rc5
{[%clk 0:00:31.8]} 36... Nd2+ {[%clk 0:00:36.4]} 37. Kd3 {[%clk 0:00:32.1]}
37... Nb3 {[%clk 0:00:37.6]} 38. Nxb3 {[%clk 0:00:28.2]} 38... axb3 {[%clk
0:00:38.1]} 39. Rc4 {[%clk 0:00:29.7]} 39... Ra5 {[%clk 0:00:38.8]} 40. Rb4
{[%clk 0:00:29]} 40... Rb5 {[%clk 0:00:38.4]} 41. Rxb5 {[%clk 0:00:22.5]} 41...
cxb5 {[%clk 0:00:40.3]} 42. Kd2 {[%clk 0:00:24.1]} 42... Ke6 {[%clk 0:00:41]}
43. Kc1 {[%clk 0:00:25]} 43... Kxe5 {[%clk 0:00:41.8]} 44. Kb2 {[%clk
0:00:24.4]} 44... Kf4 {[%clk 0:00:42.9]} 0-1

[Event "*** MasterClass Titled Tuesday Blitz"]
[Site "Chess.com"]
[Date "2017.08.01"]
[Round "5"]
[White "Jungle_Jaguar"]
[Black "AndrewDGreen"]
[Result "1-0"]
[WhiteElo "2323"]
[BlackElo "2164"]
[TimeControl "180+2"]
[EndTime "14:03:57 PDT"]
[Termination "Jungle_Jaguar won on time"]

1. c4 {[%clk 0:03:01.9]} 1... g6 {[%clk 0:02:59.6]} 2. g3 {[%clk 0:03:03.1]}
2... Bg7 {[%clk 0:03:00.6]} 3. Bg2 {[%clk 0:03:04.7]} 3... c5 {[%clk 0:03:01.8]}
4. Nc3 {[%clk 0:03:06.2]} 4... Nc6 {[%clk 0:03:03.2]} 5. Nf3 {[%clk 0:03:07.6]}
5... d6 {[%clk 0:03:04.7]} 6. O-O {[%clk 0:03:08.1]} 6... Bf5 {[%clk 0:03:06.3]}
7. e4 {[%clk 0:02:58.7]} 7... Bg4 {[%clk 0:03:06.8]} 8. h3 {[%clk 0:02:59.2]}
8... Bxf3 {[%clk 0:03:08.1]} 9. Bxf3 {[%clk 0:03:00.6]} 9... e6 {[%clk
0:03:09.7]} 10. d3 {[%clk 0:03:01.2]} 10... Nge7 {[%clk 0:03:11.1]} 11. Be3
{[%clk 0:03:01]} 11... Nd4 {[%clk 0:03:12.4]} 12. Bg2 {[%clk 0:03:01.9]} 12...
O-O {[%clk 0:03:12.1]} 13. f4 {[%clk 0:03:03.2]} 13... Rb8 {[%clk 0:03:11.4]}
14. Rb1 {[%clk 0:03:04.1]} 14... b5 {[%clk 0:03:05.9]} 15. cxb5 {[%clk
0:02:55.3]} 15... Nxb5 {[%clk 0:03:07.8]} 16. Nxb5 {[%clk 0:02:56.7]} 16... Rxb5
{[%clk 0:03:08.7]} 17. b3 {[%clk 0:02:50.1]} 17... Qb6 {[%clk 0:02:46.3]} 18.
Kh2 {[%clk 0:02:48.5]} 18... Nc6 {[%clk 0:02:45.8]} 19. f5 {[%clk 0:02:47.9]}
19... Be5 {[%clk 0:02:43.4]} 20. Bh6 {[%clk 0:02:37.3]} 20... Re8 {[%clk
0:02:39.2]} 21. f6 {[%clk 0:02:30.1]} 21... Nd4 {[%clk 0:02:34.1]} 22. Qg4
{[%clk 0:02:27.7]} 22... Ra5 {[%clk 0:02:14.6]} 23. Rf2 {[%clk 0:02:23.2]} 23...
Qa6 {[%clk 0:02:13.2]} 24. Qh4 {[%clk 0:02:05.1]} 24... Qxd3 {[%clk 0:01:37.3]}
25. Re1 {[%clk 0:01:46.9]} 25... Nc2 {[%clk 0:00:49.3]} 26. Ree2 {[%clk
0:01:35.6]} 26... Rxa2 {[%clk 0:00:49.5]} 27. Rd2 {[%clk 0:01:15.9]} 27... Qxb3
{[%clk 0:00:38.2]} 28. Bf4 {[%clk 0:01:10]} 28... Bc3 {[%clk 0:00:12.6]} 29. Rd3
{[%clk 0:00:59.1]} 29... Kh8 {[%clk 0:00:13.2]} 30. Bd2 {[%clk 0:00:55.7]} 30...
Nd4 {[%clk 0:00:05.5]} 31. Rxc3 {[%clk 0:00:55.7]} 31... Qd1 {[%clk 0:00:05.4]}
32. Qh6 {[%clk 0:00:47]} 32... Rg8 {[%clk 0:00:06.1]} 33. Rc1 {[%clk 0:00:34.3]}
33... Qb3 {[%clk 0:00:06.1]} 34. Rf4 {[%clk 0:00:27.3]} 34... g5 {[%clk
0:00:02.4]} 35. Rg4 {[%clk 0:00:20.8]} 1-0

[Event "*** MasterClass Titled Tuesday Blitz"]
[Site "Chess.com"]
[Date "2017.08.01"]
[Round "5"]
[White "AllStarShark"]
[Black "Tash_Boy"]
[Result "0-1"]
[WhiteElo "2301"]
[BlackElo "2441"]
[TimeControl "180+2"]
[EndTime "14:04:12 PDT"]
[Termination "Tash_Boy won by checkmate"]

1. d4 {[%clk 0:03:01.9]} 1... Nf6 {[%clk 0:03:00]} 2. Bg5 {[%clk 0:03:02.7]}
2... Ne4 {[%clk 0:03:00]} 3. Bf4 {[%clk 0:03:03.8]} 3... d5 {[%clk 0:03:00.6]}
4. e3 {[%clk 0:03:04.7]} 4... e6 {[%clk 0:02:59.4]} 5. Bd3 {[%clk 0:03:05.8]}
5... Nf6 {[%clk 0:02:58.1]} 6. Nd2 {[%clk 0:03:06.2]} 6... c5 {[%clk 0:02:59.6]}
7. c3 {[%clk 0:03:07.3]} 7... Nc6 {[%clk 0:03:01]} 8. Ngf3 {[%clk 0:03:05.2]}
8... Bd6 {[%clk 0:03:02.7]} 9. Bg3 {[%clk 0:03:05.3]} 9... O-O {[%clk
0:03:02.6]} 10. O-O {[%clk 0:03:05.6]} 10... Qc7 {[%clk 0:03:02.6]} 11. Qe2
{[%clk 0:02:41.5]} 11... e5 {[%clk 0:02:56]} 12. dxe5 {[%clk 0:02:41.2]} 12...
Nxe5 {[%clk 0:02:56.6]} 13. Nxe5 {[%clk 0:02:41.2]} 13... Bxe5 {[%clk
0:02:58.2]} 14. e4 {[%clk 0:02:37.7]} 14... Bxg3 {[%clk 0:02:53.2]} 15. hxg3
{[%clk 0:02:37.6]} 15... Re8 {[%clk 0:02:52.8]} 16. Rfe1 {[%clk 0:02:26.7]}
16... Ng4 {[%clk 0:02:48.3]} 17. Qf3 {[%clk 0:02:16.5]} 17... Ne5 {[%clk
0:02:45.1]} 18. Qe2 {[%clk 0:02:14.8]} 18... Qd6 {[%clk 0:02:32.2]} 19. f4
{[%clk 0:02:09.3]} 19... Ng4 {[%clk 0:02:18.4]} 20. f5 {[%clk 0:01:58.1]} 20...
Qxg3 {[%clk 0:02:17.8]} 21. Nf1 {[%clk 0:01:48.5]} 21... Qh4 {[%clk 0:02:18.6]}
22. g3 {[%clk 0:01:35.2]} 22... Qh3 {[%clk 0:02:18.7]} 23. Qf3 {[%clk 0:01:36]}
23... Ne5 {[%clk 0:02:17.2]} 24. Qe2 {[%clk 0:01:33.1]} 24... Nxd3 {[%clk
0:02:17.7]} 25. Qxd3 {[%clk 0:01:35]} 25... dxe4 {[%clk 0:02:19.1]} 26. Rxe4
{[%clk 0:01:35.5]} 26... Bxf5 {[%clk 0:02:20.8]} 27. Rxe8+ {[%clk 0:01:33.9]}
27... Rxe8 {[%clk 0:02:22.4]} 28. Qb5 {[%clk 0:01:28.1]} 28... Bd7 {[%clk
0:02:14.2]} 29. Qxb7 {[%clk 0:01:24.9]} 29... h5 {[%clk 0:02:15]} 30. Rd1 {[%clk
0:01:22.1]} 30... Bg4 {[%clk 0:02:14.7]} 31. Qc6 {[%clk 0:01:19.5]} 31... Re2
{[%clk 0:02:11.8]} 32. Rd8+ {[%clk 0:00:48.7]} 32... Kh7 {[%clk 0:02:12.1]} 33.
Qa8 {[%clk 0:00:50.1]} 33... Re1 {[%clk 0:02:02.6]} 34. Rh8+ {[%clk 0:00:43.9]}
34... Kg6 {[%clk 0:02:01.9]} 35. Qc6+ {[%clk 0:00:44.6]} 35... f6 {[%clk
0:01:52]} 36. Qg2 {[%clk 0:00:36.9]} 36... Rxf1+ {[%clk 0:01:33.1]} 37. Kxf1
{[%clk 0:00:28.5]} 37... Be2+ {[%clk 0:01:27.8]} 38. Kg1 {[%clk 0:00:23.1]}
38... Qe6 {[%clk 0:01:27.7]} 39. Rd8 {[%clk 0:00:13.9]} 39... Qe3+ {[%clk
0:01:11.9]} 40. Qf2 {[%clk 0:00:13.4]} 40... Qc1+ {[%clk 0:01:12.9]} 41. Kg2
{[%clk 0:00:14]} 41... Bg4 {[%clk 0:01:14.3]} 42. Rd2 {[%clk 0:00:12.5]} 42...
Bf5 {[%clk 0:01:14.5]} 43. a3 {[%clk 0:00:11.3]} 43... Be4+ {[%clk 0:01:15.3]}
44. Kh3 {[%clk 0:00:10.6]} 44... Qh1+ {[%clk 0:01:16]} 45. Qh2 {[%clk
0:00:12.2]} 45... Qf1+ {[%clk 0:01:17.2]} 46. Kh4 {[%clk 0:00:12.5]} 46... Kh6
{[%clk 0:01:18.9]} 47. g4 {[%clk 0:00:05.9]} 47... g5+ {[%clk 0:01:19.6]} 48.
Kg3 {[%clk 0:00:06.5]} 48... h4+ {[%clk 0:01:21.5]} 49. Qxh4+ {[%clk 0:00:04]}
49... gxh4+ {[%clk 0:01:18]} 50. Kxh4 {[%clk 0:00:05.9]} 50... Qe1+ {[%clk
0:01:18.5]} 51. Kh3 {[%clk 0:00:05.3]} 51... Qxd2 {[%clk 0:01:19.7]} 52. c4
{[%clk 0:00:05.5]} 52... Qg2+ {[%clk 0:01:16.1]} 53. Kh4 {[%clk 0:00:05.9]}
53... Qh2# {[%clk 0:01:18]} 0-1

[Event "*** MasterClass Titled Tuesday Blitz"]
[Site "Chess.com"]
[Date "2017.08.01"]
[Round "5"]
[White "Rumpel-VK"]
[Black "krzyzan94"]
[Result "1-0"]
[WhiteElo "2451"]
[BlackElo "2529"]
[TimeControl "180+2"]
[EndTime "14:04:21 PDT"]
[Termination "Rumpel-VK won by resignation"]

1. d4 {[%clk 0:02:56.8]} 1... Nf6 {[%clk 0:03:00.9]} 2. c4 {[%clk 0:02:57.6]}
2... d6 {[%clk 0:03:01.5]} 3. Nc3 {[%clk 0:02:58.3]} 3... e5 {[%clk 0:03:02.7]}
4. dxe5 {[%clk 0:02:58.6]} 4... dxe5 {[%clk 0:03:04.6]} 5. Qxd8+ {[%clk
0:02:59.4]} 5... Kxd8 {[%clk 0:03:06.5]} 6. Bg5 {[%clk 0:03:00.1]} 6... Nd7
{[%clk 0:03:04.9]} 7. e3 {[%clk 0:02:55]} 7... c6 {[%clk 0:03:05.5]} 8. Nf3
{[%clk 0:02:45]} 8... Kc7 {[%clk 0:03:04]} 9. Bxf6 {[%clk 0:02:45.9]} 9... gxf6
{[%clk 0:03:04.1]} 10. Bd3 {[%clk 0:02:39.6]} 10... Nc5 {[%clk 0:03:02.2]} 11.
Bc2 {[%clk 0:02:39.1]} 11... a5 {[%clk 0:03:03]} 12. O-O {[%clk 0:02:35.5]}
12... Be6 {[%clk 0:03:00.4]} 13. b3 {[%clk 0:02:35.6]} 13... Na6 {[%clk
0:02:50.6]} 14. Rad1 {[%clk 0:02:30.5]} 14... Bb4 {[%clk 0:02:47.3]} 15. Ne4
{[%clk 0:02:29.8]} 15... Be7 {[%clk 0:02:28.9]} 16. Ng3 {[%clk 0:02:29.6]} 16...
a4 {[%clk 0:02:27.9]} 17. Nh4 {[%clk 0:02:06.3]} 17... Nb4 {[%clk 0:02:28.1]}
18. Bb1 {[%clk 0:02:04.2]} 18... axb3 {[%clk 0:02:29.2]} 19. axb3 {[%clk
0:02:05.2]} 19... Ra3 {[%clk 0:02:30.8]} 20. Nhf5 {[%clk 0:02:03.4]} 20... Bc5
{[%clk 0:02:23.8]} 21. Ne4 {[%clk 0:02:01.2]} 21... b6 {[%clk 0:02:19.4]} 22.
Nxf6 {[%clk 0:01:52.1]} 22... Rxb3 {[%clk 0:02:20.1]} 23. Ng7 {[%clk 0:01:53]}
23... Bc8 {[%clk 0:01:49]} 24. Bf5 {[%clk 0:01:44.5]} 24... Bxf5 {[%clk
0:01:42.8]} 25. Nxf5 {[%clk 0:01:44.5]} 25... Rd8 {[%clk 0:01:38.7]} 26. Rxd8
{[%clk 0:01:29.5]} 26... Kxd8 {[%clk 0:01:40.6]} 27. Ra1 {[%clk 0:01:28.8]}
27... b5 {[%clk 0:01:38.4]} 28. cxb5 {[%clk 0:01:27.2]} 28... cxb5 {[%clk
0:01:39.4]} 29. h4 {[%clk 0:01:24.4]} 29... Nd3 {[%clk 0:01:25.2]} 30. h5 {[%clk
0:01:21.7]} 30... b4 {[%clk 0:01:23.3]} 31. Nxh7 {[%clk 0:01:17.5]} 31... Ra3
{[%clk 0:01:23.8]} 32. Rd1 {[%clk 0:01:17.1]} 32... Kc7 {[%clk 0:01:20.6]} 33.
Nf6 {[%clk 0:01:14.9]} 33... b3 {[%clk 0:01:21.1]} 34. Nd5+ {[%clk 0:00:38.4]}
34... Kb7 {[%clk 0:01:07.5]} 35. Nc3 {[%clk 0:00:33.1]} 35... b2 {[%clk
0:01:06.1]} 36. Nb1 {[%clk 0:00:34]} 36... Ra1 {[%clk 0:01:05.5]} 37. h6 {[%clk
0:00:34.7]} 37... Nc1 {[%clk 0:01:00.3]} 38. h7 {[%clk 0:00:23.2]} 38... Rxb1
{[%clk 0:00:40.1]} 39. Kh2 {[%clk 0:00:21.1]} 39... Ra1 {[%clk 0:00:31.2]} 40.
h8=Q {[%clk 0:00:21.7]} 40... b1=Q {[%clk 0:00:32.4]} 41. Rd7+ {[%clk
0:00:22.2]} 41... Kc6 {[%clk 0:00:29.6]} 42. Qc8+ {[%clk 0:00:22.4]} 42... Kb5
{[%clk 0:00:30.8]} 43. Rb7+ {[%clk 0:00:19.5]} 43... Bb6 {[%clk 0:00:31.8]} 44.
Nd6+ {[%clk 0:00:20.1]} 44... Ka5 {[%clk 0:00:23.4]} 45. Qa8+ {[%clk 0:00:19.5]}
45... Kb4 {[%clk 0:00:24.4]} 46. Rxb6+ {[%clk 0:00:19.8]} 46... Kc3 {[%clk
0:00:25.5]} 47. Qc6+ {[%clk 0:00:20]} 47... Kd2 {[%clk 0:00:26.5]} 48. Nc4+
{[%clk 0:00:18.6]} 1-0

[Event "*** MasterClass Titled Tuesday Blitz"]
[Site "Chess.com"]
[Date "2017.08.01"]
[Round "5"]
[White "Marcus_Harvey"]
[Black "swayamsm"]
[Result "1-0"]
[WhiteElo "2592"]
[BlackElo "2452"]
[TimeControl "180+2"]
[EndTime "14:04:22 PDT"]
[Termination "Marcus_Harvey won by resignation"]

1. Nf3 {[%clk 0:03:01.9]} 1... Nf6 {[%clk 0:02:55.4]} 2. b3 {[%clk 0:03:03.3]}
2... g6 {[%clk 0:02:52.5]} 3. Bb2 {[%clk 0:03:04.4]} 3... Bg7 {[%clk 0:02:54.1]}
4. e3 {[%clk 0:03:06]} 4... c5 {[%clk 0:02:55.3]} 5. Be2 {[%clk 0:03:07.3]} 5...
b6 {[%clk 0:02:56.3]} 6. O-O {[%clk 0:03:08.4]} 6... Bb7 {[%clk 0:02:57.9]} 7.
d4 {[%clk 0:03:10]} 7... O-O {[%clk 0:02:58.2]} 8. c4 {[%clk 0:03:11.2]} 8...
cxd4 {[%clk 0:02:58.9]} 9. Nxd4 {[%clk 0:03:12.4]} 9... Nc6 {[%clk 0:02:56.7]}
10. Bf3 {[%clk 0:03:13.7]} 10... Qc8 {[%clk 0:02:56.5]} 11. Nxc6 {[%clk
0:03:14.8]} 11... Bxc6 {[%clk 0:02:58.4]} 12. Nc3 {[%clk 0:03:14.1]} 12... Ne4
{[%clk 0:02:49.1]} 13. Rc1 {[%clk 0:03:10.4]} 13... Nxc3 {[%clk 0:02:44.6]} 14.
Bxc3 {[%clk 0:03:12.3]} 14... Bxc3 {[%clk 0:02:45]} 15. Rxc3 {[%clk 0:03:14.2]}
15... Rd8 {[%clk 0:02:46.2]} 16. Rd3 {[%clk 0:03:12]} 16... Qc7 {[%clk
0:02:38.8]} 17. Bxc6 {[%clk 0:03:12.4]} 17... dxc6 {[%clk 0:02:39.1]} 18. Qe2
{[%clk 0:02:58.2]} 18... Rxd3 {[%clk 0:02:38.2]} 19. Qxd3 {[%clk 0:03:00.1]}
19... Rd8 {[%clk 0:02:39.1]} 20. Qe4 {[%clk 0:03:01.4]} 20... Qd6 {[%clk
0:02:35.9]} 21. h4 {[%clk 0:02:59.8]} 21... f5 {[%clk 0:02:27.7]} 22. Qf3 {[%clk
0:02:57.9]} 22... e5 {[%clk 0:02:24.3]} 23. h5 {[%clk 0:02:55.8]} 23... e4
{[%clk 0:02:24.2]} 24. Qh3 {[%clk 0:02:56.5]} 24... Kg7 {[%clk 0:02:19.2]} 25.
h6+ {[%clk 0:02:56.3]} 25... Kf7 {[%clk 0:02:19.6]} 26. Qh4 {[%clk 0:02:26.9]}
26... Qf6 {[%clk 0:02:12.3]} 27. Qf4 {[%clk 0:02:27.8]} 27... Qd6 {[%clk
0:02:08.1]} 28. Qh4 {[%clk 0:02:27.3]} 28... Qf6 {[%clk 0:02:08.9]} 29. Qf4
{[%clk 0:02:27.7]} 29... Rd6 {[%clk 0:02:03.6]} 30. g4 {[%clk 0:02:21.9]} 30...
g5 {[%clk 0:02:02.9]} 31. Qxf5 {[%clk 0:02:21.8]} 31... Qxf5 {[%clk 0:02:03.7]}
32. gxf5 {[%clk 0:02:23.7]} 32... Kf6 {[%clk 0:02:03.1]} 33. Kg2 {[%clk
0:01:58.5]} 33... Kxf5 {[%clk 0:02:02.8]} 34. Kg3 {[%clk 0:01:59.1]} 34... Kg6
{[%clk 0:01:45.6]} 35. c5 {[%clk 0:01:55.2]} 35... bxc5 {[%clk 0:01:41.4]} 36.
Rc1 {[%clk 0:01:56.3]} 36... Rd5 {[%clk 0:01:38.8]} 37. Rc4 {[%clk 0:01:57.3]}
37... Re5 {[%clk 0:01:35.8]} 38. Ra4 {[%clk 0:01:57.7]} 38... Kxh6 {[%clk
0:01:31.9]} 39. Rxa7 {[%clk 0:01:56.8]} 39... Kg6 {[%clk 0:01:31.9]} 40. Ra6
{[%clk 0:01:54.8]} 40... Re6 {[%clk 0:01:31.7]} 41. Ra5 {[%clk 0:01:56.1]} 41...
Re5 {[%clk 0:01:19.6]} 42. b4 {[%clk 0:01:54.7]} 42... Kf5 {[%clk 0:01:10.8]}
43. Rxc5 {[%clk 0:01:27.8]} 43... Rxc5 {[%clk 0:00:18.7]} 44. bxc5 {[%clk
0:01:29.7]} 44... h5 {[%clk 0:00:20.3]} 45. a4 {[%clk 0:01:29.5]} 45... Ke6
{[%clk 0:00:20.2]} 46. a5 {[%clk 0:01:29.9]} 46... Kd7 {[%clk 0:00:18.2]} 47. f4
{[%clk 0:01:28.9]} 47... exf3 {[%clk 0:00:14.5]} 48. Kxf3 {[%clk 0:01:21]} 48...
g4+ {[%clk 0:00:11.8]} 49. Kf4 {[%clk 0:01:20.9]} 49... Kc7 {[%clk 0:00:12.5]}
50. e4 {[%clk 0:01:21.8]} 50... Kb7 {[%clk 0:00:08.9]} 51. e5 {[%clk 0:01:21.7]}
51... Kc7 {[%clk 0:00:09.9]} 52. e6 {[%clk 0:01:22.6]} 1-0